[Event "Summer Prague Open-A 2022"]
[Site "Prague"]
[Date "2022.08.11"]
[Round "8.15"]
[White "Slampa, Jan"]
[Black "Philipp, Mathias"]
[Result "0-1"]
[ECO "A85"]
[WhiteElo "2254"]
[BlackElo "2092"]
[Annotator "TA"]
[PlyCount "188"]
[EventDate "2022.08.05"]
[EventType "swiss"]
[EventCountry "CZE"]
[SourceTitle "playchess.com"]
[Source "ChessBase"]
[SourceQuality "1"]
[TimeControl "40/5400+30:1800+30"]

{[%evp 9,188,0,0,-3,-8,0,-12,-13,-12,-1,2,-9,0,6,24,-13,-6,-25,-24,-29,-29,-28,-18,-44,-41,-75,0,0,0,-110,-104,-131,226,225,196,220,220,212,208,147,476,79,220,223,367,381,407,0,0,-184,-192,-262,-239,-282,-282,-282,-282,-282,-282,-282,-282,-367,-269,-269,-269,-405,-262,-375,-286,-319,-286,-377,-326,-326,-286,-355,-286,-329,-269,-422,-392,-366,-286,-286,-286,-320,0,-262,-262,-262,-262,-262,-262,-262,-102,-262,-262,-262,-262,-262,-262,-262,-262,-254,-245,-245,-219,-227,-227,-227,-207,-227,-216,-227,-227,-227,-96,-220,-46,-54,-54,-181,-90,-103,-65,-93,-93,-179,-149,-202,-196,-197,-147,-282,-67,-137,-67,-84,-83,-92,-102,-251,-222,-354,-222,-216,0,-321,-354,-354,-333,-306,-291,-447,-446,-402,-402,-489,-518,-506,-501,-1281,-1051,-2445,-2419,-29978,-29979,-29968,-2008,-1487,-768,-2810,-1914,-29974,-29975,-29992,-29985,-29984,-29985,-29985,-29986]} 1. d4 {[%emt 0:00:03]} f5 {[%emt 0:00:06]} 2. c4 {[%emt 0:00:41]} Nf6 {[%emt 0:00:05]} 3. Nc3 {[%emt 0:00:06]} e6 {[%emt 0:00:06]} 4. Bf4 {[%emt 0:00:40]} Bb4 {[%emt 0:00:54]} 5. Nf3 {[%emt 0:01:41]} Bxc3+ {[%emt 0:00:43]} 6. bxc3 {[%emt 0:00:02] A85: Dutch Defence: 2 c4 Nf6 3 Nc3.} b6 {[%emt 0:00:05]} 7. e3 {[%emt 0:03:18]} Bb7 {[%emt 0:00:32]} 8. Bd3 {[%emt 0:02:30] The position is equal.} d6 {[%emt 0:02:44]} 9. O-O {[%emt 0:04:28]} Nbd7 {[%emt 0:01:05]} 10. Bg3 {[%emt 0:05:26] [#]} Ne4 $146 {[%emt 0:02:36]} ({Predecessor:} 10... O-O 11. Nd2 Qe8 12. f3 Nh5 13. Bf2 Kh8 14. Qc2 Qf7 15. g4 fxg4 16. fxg4 Nhf6 {1-0 (53) Stephan,V (2036)-Desbois,A (2002) France 2006}) 11. Bh4 {[%emt 0:04:43]} Ndf6 {[%emt 0:01:58]} 12. c5 {[%emt 0:10:10]} (12. d5 $5) 12... bxc5 {[%emt 0:09:28]} 13. Qb3 {[%emt 0:06:49]} Bd5 {[%emt 0:04:04]} 14. c4 {[%emt 0:09:38]} Bc6 {[%emt 0:02:29]} 15. Bxe4 {[%emt 0:00:46]} fxe4 {[%emt 0:07:06]} 16. Ng5 {[%emt 0:05:57]} Qe7 {[%emt 0:08:03]} 17. dxc5 {[%emt 0:05:00]} e5 {[%emt 0:02:20]} (17... h6 $17 18. Nh3 (18. cxd6 cxd6 19. Nh3 g5 $17) 18... g5 19. cxd6 cxd6) 18. cxd6 {[%emt 0:02:29]} cxd6 {[%emt 0:00:43]} 19. Rad1 {[%emt 0:09:18]} (19. f3 $11) 19... h6 $17 {[%emt 0:00:38]} 20. c5 {[%emt 0:11:46]} d5 {[%emt 0:00:35][%mdl 8192] [#]} (20... hxg5 $17 {and life is bright.} 21. Rxd6 Qf7 $1) 21. Nxe4 $1 $18 {[%emt 0:00:17][%mdl 512]} dxe4 {[%emt 0:04:46]} 22. Rd6 {[%emt 0:00:01]} Bd7 {[%emt 0:01:59]} 23. Bxf6 {[%emt 0:01:07]} (23. Rfd1 g5 24. Bg3 Bf5 $14) 23... gxf6 {[%emt 0:00:10]} 24. Rfd1 {[%emt 0:00:11]} Bg4 $2 {[%emt 0:04:26][%mdl 8192]} (24... Rd8 $2 25. c6 Bxc6 26. Rxd8+ Qxd8 27. Rxd8+ Kxd8 28. Qb8+ Kd7 29. Qxh8 $18) (24... Bf5 $16 {is a better chance.}) 25. Qd5 $2 {[%emt 0:07:35]} (25. f3 $1 $18 {and the rest is easy.} Bf5 26. g4 exf3 27. Kf2 (27. gxf5 $2 {leads to mate.} Qg7+ 28. Kf2 Qg2+ 29. Ke1 Qe2#)) 25... Rc8 {[%emt 0:04:05]} (25... Rb8 $16) 26. Rd2 {[%emt 0:02:42][%mdl 1024] White has strong compensation.} Bf5 {[%emt 0:04:47]} (26... Qg7 $142 27. c6 Rb8 28. Qxe4 O-O) 27. h3 $1 {[%emt 0:00:28] Black must now prevent g4.} h5 {[%emt 0:00:32] Against g4} 28. c6 $2 {[%emt 0:00:16]} ({White has to play} 28. f3 $1 $18 {[%cal Rf3e4]} exf3 29. e4 f2+ 30. Kf1 (30. Rxf2 Qf7 $18)) 28... Kf8 $11 {[%emt 0:00:47]} 29. Rb2 $2 {[%emt 0:05:09]} (29. f4 $11 Rh7 30. Rb2) 29... Kg7 $1 $19 {[%emt 0:02:19]} 30. Rb7 {[%emt 0:00:18]} (30. f3 $142 exf3 31. Rd2) 30... Rc7 {[%emt 0:00:04]} 31. Rd7 {[%emt 0:01:48]} Rxd7 {[%emt 0:00:04]} 32. cxd7 {[%emt 0:00:01]} Rd8 {[%emt 0:00:10][%cal Rd8d7]} 33. Rxa7 {[%emt 0:00:42]} Rxd7 {[%emt 0:00:09]} 34. Rxd7 {[%emt 0:00:05]} Qxd7 {[%emt 0:00:03]} (34... Bxd7 $2 {perishes.} 35. Qxe4 Qa3 36. Qb7 $19) 35. Qc4 {[%emt 0:00:32]} Be6 {[%emt 0:02:08]} 36. Qxe4 {[%emt 0:00:18]} Bxa2 {[%emt 0:00:13]} 37. Kh2 {[%emt 0:00:19]} (37. Qc2 $142 Bd5 38. Qd1) 37... Qd5 {[%emt 0:01:59]} 38. Qf5 {[%emt 0:00:53]} (38. Qb4 $142) 38... e4 {[%emt 0:00:39]} 39. Qc8 {[%emt 0:00:20]} Qe5+ {[%emt 0:01:39]} 40. Kg1 {[%emt 0:00:18]} Bf7 {[%emt 0:02:13]} 41. Qc1 {[%emt 0:02:52]} Qd5 {[%emt 0:02:49]} 42. Qc7 {[%emt 0:02:03]} Kg6 {[%emt 0:01:23]} 43. Qb8 {[%emt 0:00:46]} Qe5 {[%emt 0:00:33]} 44. Qb6 {[%emt 0:00:57]} (44. Qb1 {might work better.}) 44... Qa1+ {[%emt 0:06:28]} 45. Kh2 {[%emt 0:00:02]} Qf1 {[%emt 0:00:13]} 46. Qb2 {[%emt 0:00:48] Inhibits Qe2.} Qd1 {[%emt 0:04:19]} 47. Qb8 {[%emt 0:04:17]} Qa1 $2 {[%emt 0:10:40]} (47... Qc2 $19 48. Qg3+ Kh7) 48. Qb4 $2 {[%emt 0:04:25][%mdl 8192]} (48. Qb6 $1 $11 {and White is okay.} Qa2 49. Kg1) 48... Qe5+ {[%emt 0:07:35]} 49. Kg1 {[%emt 0:00:08]} Kf5 {[%emt 0:00:47]} 50. Qb7 {[%emt 0:02:00]} Qd5 {[%emt 0:07:29]} 51. Qc8+ {[%emt 0:00:34]} Ke5 $2 {[%emt 0:02:06]} (51... Qe6 $19 52. Qc7 Kg6 53. Qg3+ Kh7) 52. Qc7+ {[%emt 0:02:15]} (52. Qb8+ $17 Ke6 53. Qh8) 52... Ke6 $1 {[%emt 0:04:45]} 53. Qb6+ {[%emt 0:00:05]} Ke7 {[%emt 0:00:32] ...Qd1+ is the strong threat.} 54. Qb4+ {[%emt 0:00:02]} Kd7 {[%emt 0:01:00] Hoping for ...Qd1+.} 55. Qa4+ {[%emt 0:00:39]} Ke6 {[%emt 0:09:01]} 56. Qa6+ {[%emt 0:01:20]} Ke5 {[%emt 0:00:07]} 57. Qa7 {[%emt 0:01:01]} f5 {[%emt 0:01:45]} 58. Qc7+ {[%emt 0:00:53]} Ke6 {[%emt 0:00:12] aiming for ...Qd1+.} 59. Qc8+ {[%emt 0:01:19]} Kd6 {[%emt 0:00:06]} 60. Kh2 {[%emt 0:02:21]} Qe6 {[%emt 0:01:15]} 61. Qc1 {[%emt 0:03:37]} Qc4 {[%emt 0:00:27]} 62. Qa3+ {[%emt 0:00:33]} Kc6 {[%emt 0:00:15]} (62... Qc5 $19 {and Black stays clearly on top.} 63. Qa6+ Ke7) 63. Qa8+ {[%emt 0:00:36]} (63. Kg3 $17) 63... Kb5 $2 {[%emt 0:01:43]} (63... Kd7 $19 {Strongly threatening ...Qc3.} 64. Qh8 Qe6) 64. Qb7+ $15 {[%emt 0:00:34]} Ka5 $1 {[%emt 0:00:11]} 65. Qa7+ {[%emt 0:01:50]} ({Better is} 65. Qd7 $15) 65... Kb4 $19 {[%emt 0:00:28]} 66. Qb6+ {[%emt 0:00:13]} Ka4 {[%emt 0:00:52]} 67. Qb8 {[%emt 0:01:41]} Qd5 {[%emt 0:00:54]} 68. Kg1 {[%emt 0:00:37]} (68. Kg3 $17) 68... Ka3 {[%emt 0:00:24]} 69. Qb6 {[%emt 0:01:06]} (69. Kh2 $17) 69... Be6 {[%emt 0:00:15]} 70. Qb8 {[%emt 0:00:21]} Bd7 {[%emt 0:00:25]} (70... Ka2 $19 71. Qh8 Bf7) 71. Qb6 {[%emt 0:01:12]} (71. Kh2 $17 {is a better defense.}) 71... Qb5 $2 {[%emt 0:01:01]} (71... Bb5 $19 {And now ...Kb2 would win.} 72. Qg6 Be2) 72. Qg6 {[%emt 0:02:12]} (72. Qd6+ $15 Kb3 73. Qd1+ Kc3 74. Qxh5) 72... Be8 {[%emt 0:00:09]} ({Black should play} 72... Qb1+ $17 73. Kh2 Qb8+ 74. g3 h4) 73. Qd6+ $1 $15 {[%emt 0:00:38]} Ka2 {[%emt 0:00:05]} 74. Qd2+ {[%emt 0:00:45]} Ka1 {[%emt 0:01:28]} 75. Qc3+ {[%emt 0:00:01] [#]} (75. Qd4+ $17 Qb2 76. Qd6) 75... Kb1 $1 $19 {[%emt 0:00:11] Threatens to win with ...Qb2.} 76. Kh2 {[%emt 0:00:01]} (76. Qd4 $142) 76... Bd7 {[%emt 0:01:14]} 77. Qh8 {[%emt 0:00:37] [#]} Be8 {[%emt 0:02:07]} (77... Qe2 $142 $1 {[%cal Re2f2]} 78. Qb8+ Qb5) 78. Qc3 {[%emt 0:00:02]} Qb8+ {[%emt 0:00:21]} 79. Kg1 {[%emt 0:00:02]} Qb2 {[%emt 0:00:14]} 80. Qa5 {[%emt 0:00:41]} Bb5 {[%emt 0:00:15]} 81. Kh2 {[%emt 0:00:29]} (81. Qa7 $142) 81... Qe5+ {[%emt 0:00:40]} 82. Kg1 {[%emt 0:00:03]} Qc5 {[%emt 0:00:16]} 83. Kh2 {[%emt 0:00:46]} Kc2 {[%emt 0:00:02]} 84. Qa2+ {[%emt 0:01:42]} Kd1 {[%emt 0:00:10]} 85. Qb1+ {[%emt 0:01:51]} (85. Kg1 $142 Bd3 86. Qf7) 85... Ke2 {[%emt 0:00:05]} 86. Qb2+ {[%emt 0:01:35]} Kf1 {[%emt 0:00:15]} 87. g3 {[%emt 0:02:04]} Bd3 {[%emt 0:01:12]} 88. Qa1+ {[%emt 0:00:32]} Ke2 {[%emt 0:00:25]} (88... Kxf2 $142 89. Qg1+ Ke2 90. g4 hxg4 91. Qg2+ Kd1 92. hxg4 Qxe3 93. Qh1+ Kd2 94. Qg2+ Qe2 95. Qxe2+ Kxe2 96. g5 f4 97. g6 Bc4 98. g7 e3 99. Kg2 Be6 100. Kg1 Bd5 101. g8=B Bxg8 102. Kg2 Be6 103. Kg1 f3 104. Kh2 f2 105. Kh1 f1=Q+ 106. Kh2 Qf2+ 107. Kh1 Bd5#) 89. Kg2 {[%emt 0:00:29]} Bc2 {[%emt 0:01:13]} 90. Qh8 {[%emt 0:00:29]} Bd1 {[%emt 0:00:48] ( -> ...Qc2)} 91. Qxh5+ {[%emt 0:00:25]} Ke1 {[%emt 0:00:05] Black mates.} 92. Qh8 {[%emt 0:00:32]} Qc4 {[%emt 0:00:31]} 93. Qb2 {[%emt 0:00:33]} Qf1+ {[%emt 0:00:08]} 94. Kh2 {[%emt 0:00:04]} Qxf2+ {[%emt 0:00:06] Never resign too early!  Weighted Error Value: White=0.54/Black=0.46} 0-1

[Event "Summer Prague Open-A 2022"]
[Site "Prague"]
[Date "2022.08.11"]
[Round "8.16"]
[White "Ehrlich, Roy"]
[Black "Pap, Gyula"]
[Result "1/2-1/2"]
[ECO "B15"]
[WhiteElo "2183"]
[BlackElo "2481"]
[Annotator "TA"]
[PlyCount "24"]
[EventDate "2022.08.05"]
[EventType "swiss"]
[EventCountry "CZE"]
[SourceTitle "playchess.com"]
[Source "ChessBase"]
[SourceQuality "1"]
[TimeControl "40/5400+30:1800+30"]

{[%evp 16,24,27,17,37,26,39,29,69,11,62]} 1. e4 {[%emt 0:00:03]} c6 {[%emt 0:00:27]} 2. d4 {[%emt 0:00:05]} d5 {[%emt 0:00:09]} 3. Nd2 {[%emt 0:00:08]} dxe4 {[%emt 0:04:51]} 4. Nxe4 {[%emt 0:00:06]} Nf6 {[%emt 0:00:05]} 5. Nxf6+ {[%emt 0:00:06]} exf6 {[%emt 0:00:06]} 6. c3 {[%emt 0:00:04]} Bd6 {[%emt 0:00:09]} 7. Bd3 {[%emt 0:00:04]} O-O {[%emt 0:00:19]} 8. Qc2 {[%emt 0:00:03]} Re8+ {[%emt 0:00:40]} 9. Be3 {[%emt 0:00:06]} h5 {[%emt 0:01:29] B15: Caro-Kann: 3 Nc3: 3...g6 and 3...dxe4 4 Nxe4 Nf6 5 Nxf6+ exf6.} 10. Nf3 {[%emt 0:00:05]} Bf4 {[%emt 0:08:42]} 11. O-O {[%emt 0:00:35] [#]} Bc7 $146 {[%emt 0:09:38]} ({Predecessor:} 11... Bxe3 12. fxe3 Rxe3 13. Rae1 Rxe1 14. Rxe1 Be6 15. Bf5 Bxf5 16. Qxf5 g6 17. Qf4 Nd7 {½-½ (65) Gormally,D (2476)-Dudzinski,P (2196) Chess.com INT 2022}) 12. c4 {[%emt 0:18:16] White is more active.} (12. Nh4 $14) 12... Nd7 {[%emt 0:06:09] Black did not feel at home in the position after the opening.  Weighted Error Value: White=0.21 (precise) /Black=0.27 (precise)} (12... Bg4 $11) 1/2-1/2

[Event "Summer Prague Open-A 2022"]
[Site "Prague"]
[Date "2022.08.11"]
[Round "8.17"]
[White "Winter, Ondrej"]
[Black "Meissner, Felix"]
[Result "1/2-1/2"]
[ECO "B50"]
[WhiteElo "2168"]
[BlackElo "2381"]
[Annotator "TA"]
[PlyCount "75"]
[EventDate "2022.08.05"]
[EventType "swiss"]
[EventCountry "CZE"]
[SourceTitle "playchess.com"]
[Source "ChessBase"]
[SourceQuality "1"]
[TimeControl "40/5400+30:1800+30"]

{[%evp 14,75,59,53,58,23,31,25,78,73,144,125,145,138,139,162,149,132,149,99,155,150,149,147,155,111,216,76,212,85,256,150,143,153,166,136,131,33,25,29,21,0,0,0,0,0,11,16,10,0,0,0,0,0,0,0,0,0,0,0,0,0,0,0]} 1. e4 {[%emt 0:00:03]} c5 {[%emt 0:00:05]} 2. Nf3 {[%emt 0:00:04]} d6 {[%emt 0:00:04]} 3. c3 {[%emt 0:00:17]} Nf6 {[%emt 0:00:55]} 4. Be2 {[%emt 0:00:08]} Nc6 {[%emt 0:00:34]} 5. d4 {[%emt 0:00:07]} cxd4 {[%emt 0:00:38]} 6. cxd4 {[%emt 0:00:01]} d5 {[%emt 0:00:26]} 7. e5 {[%emt 0:00:23]} Ne4 {[%emt 0:00:35]} 8. O-O {[%emt 0:01:52]} h6 {[%emt 0:09:29] 8...Bg4 is a critical line. B50: Sicilian: 2...d6, Miscellaneous.} 9. Nc3 {[%emt 0:00:53] [#]} e6 $146 {[%emt 0:06:18]} ({Predecessor:} 9... Nxc3 10. bxc3 Bg4 11. Rb1 Qc7 12. Qb3 O-O-O 13. Be3 Bxf3 14. Bxf3 e6 15. c4 Kb8 16. cxd5 exd5 {1-0 (46) Lei,S (2161)-Huang,Y (1959) Toronto 2018}) 10. Bd3 {[%emt 0:00:51]} Ng5 {[%emt 0:03:55]} (10... Nxc3 $11 {remains equal.} 11. bxc3 Bd7) 11. Be3 $16 {[%emt 0:22:16]} Be7 {[%emt 0:19:15]} (11... Nxf3+ $142 12. Qxf3 Bd7) 12. Ne1 {[%emt 0:08:26]} f5 {[%emt 0:04:15]} 13. exf6 {[%emt 0:01:09]} Bxf6 {[%emt 0:00:28]} 14. Qh5+ {[%emt 0:13:50]} Nf7 {[%emt 0:03:01]} 15. Nf3 {[%emt 0:01:20]} Ne7 {[%emt 0:05:19]} 16. Bf4 {[%emt 0:25:06]} (16. Ne5 $142 {[%csl Ge5][%cal Rh5f7]} O-O 17. Ne2) 16... a6 {[%emt 0:03:32]} ({Black should play} 16... O-O) 17. Rfe1 {[%emt 0:01:17]} O-O {[%emt 0:01:00]} 18. Na4 {[%emt 0:05:03]} b6 {[%emt 0:04:25]} 19. g4 {[%emt 0:05:09][%cal Bg2g4,Bg4g5][%mdl 32] Hoping for g5.} g5 {[%emt 0:10:26]} (19... g6 $16 {was worth a try.} 20. Bxg6 Nxg6 21. Qxg6+ Bg7) 20. Be5 {[%emt 0:00:33]} (20. Bd2 $18 {is more deadly.}) 20... Bg7 {[%emt 0:05:44]} (20... Nxe5 $16 {might work better.} 21. Nxe5 Bg7) 21. Rac1 {[%emt 0:05:44]} (21. Bxg7 $18 {and the rest is easy.} Kxg7 22. h4) 21... Ra7 $2 {[%emt 0:02:06]} (21... Nxe5 $16 22. Nxe5 b5) 22. h4 {[%emt 0:02:32]} (22. Bxg7 $18 Kxg7 23. h4 gxh4 24. g5 (24. Qxh4 Bd7 $16) (24. Nxh4 Ng5 $14)) 22... Nxe5 {[%emt 0:06:53]} 23. Nxe5 {[%emt 0:00:03]} gxh4 {[%emt 0:03:02] [#]} 24. g5 $1 {[%emt 0:01:38]} ({Not} 24. Qxh4 Bd7 25. Nc3 (25. Nxd7 Qxd7 26. Nc3 Nc6 $17) 25... Nc6 26. Qxd8 Nxd8 $11) 24... Qe8 {[%emt 0:03:10] [#]} 25. Qxe8 {[%emt 0:00:11] The board is on fire. 0x0.0024d7c261dedp-1022s more active pieces.} ({White should try} 25. Qxh4 $1 $16 Bxe5 26. Rxe5 (26. dxe5 Nf5 $11) 26... Qxa4 27. Qxh6) 25... Rxe8 $14 {[%emt 0:00:01]} 26. Nxb6 {[%emt 0:00:34] Pair of Knights!} (26. gxh6 {feels hotter.} Bxh6 27. Rc2 b5 28. Nb6) 26... hxg5 {[%emt 0:01:04]} 27. Nxc8 {[%emt 0:02:26] The position is equal.} Rxc8 {[%emt 0:01:09]} 28. Rxc8+ {[%emt 0:00:03]} Nxc8 {[%emt 0:00:05]} 29. Nc6 {[%emt 0:00:04]} Rc7 {[%emt 0:02:19]} 30. Rxe6 {[%emt 0:00:08]} Kf8 {[%emt 0:02:13]} 31. Bxa6 {[%emt 0:01:28]} Ne7 {[%emt 0:00:55]} 32. Bb5 {[%emt 0:01:57]} Nxc6 {[%emt 0:01:42]} 33. Rxc6 {[%emt 0:00:06]} Rxc6 {[%emt 0:01:14]} 34. Bxc6 {[%emt 0:00:01]} Bxd4 $11 {[%emt 0:00:09] KB-KB} 35. b3 {[%emt 0:00:41]} Ke7 {[%emt 0:00:52]} 36. Bxd5 {[%emt 0:00:07]} Kd6 {[%emt 0:00:20]} 37. Bc4 {[%emt 0:00:56]} Kc5 {[%emt 0:00:39]} 38. Kg2 {[%emt 0:00:36] Black defended with fortune.  Weighted Error Value: White=0.25 (precise) /Black=0.23 (precise)} 1/2-1/2

[Event "Summer Prague Open-A 2022"]
[Site "Prague"]
[Date "2022.08.11"]
[Round "8.18"]
[White "Guz, Ari"]
[Black "Hajiyev, Kanan"]
[Result "1-0"]
[ECO "D96"]
[WhiteElo "2331"]
[BlackElo "2142"]
[Annotator "TA"]
[PlyCount "57"]
[EventDate "2022.08.05"]
[EventType "swiss"]
[EventCountry "CZE"]
[SourceTitle "playchess.com"]
[Source "ChessBase"]
[SourceQuality "1"]
[TimeControl "40/5400+30:1800+30"]

{[%evp 17,57,25,34,35,58,29,28,31,27,29,42,44,77,70,60,59,67,58,62,60,64,62,79,75,135,133,133,131,219,202,223,220,257,248,245,245,251,243,262,258,917,891]} 1. c4 {[%emt 0:00:14]} c6 {[%emt 0:00:51]} 2. Nc3 {[%emt 0:00:36]} d5 {[%emt 0:00:08]} 3. d4 {[%emt 0:00:06]} Nf6 {[%emt 0:00:17]} 4. Nf3 {[%emt 0:00:09]} g6 {[%emt 0:00:30]} 5. cxd5 {[%emt 0:00:12]} cxd5 {[%emt 0:00:12]} 6. Bf4 {[%emt 0:00:10]} Bg7 {[%emt 0:00:41]} 7. e3 {[%emt 0:00:08]} O-O {[%emt 0:00:06]} 8. h3 {[%emt 0:00:06]} Nc6 {[%emt 0:00:14]} 9. Be2 {[%emt 0:00:14]} Ne4 {[%emt 0:00:57]} 10. Rc1 {[%emt 0:00:07] D90: Grünfeld: 4 Nf3 Bg7 sidelines.} Bf5 {[%emt 0:00:14]} 11. O-O {[%emt 0:00:12]} Rc8 {[%emt 0:00:42]} 12. Qb3 {[%emt 0:00:12] White has an edge.} Qd7 {[%emt 0:00:10] [#]} 13. Qa3 $146 {[%emt 0:01:30]} ({Much weaker is} 13. Nxd5 Be6 14. Bc4 Na5 $17) ({Predecessor:} 13. Rfd1 Nxc3 14. Rxc3 Na5 15. Qb4 Rxc3 16. bxc3 b6 17. Ba6 Rd8 18. Re1 f6 19. c4 dxc4 20. e4 Be6 21. d5 Bf7 22. Bb5 Qb7 23. Bxc4 {½-½ (23) Deforel,J (2260)-Rodriguez Landa,M (2499) ICCF email 2009}) 13... h6 {[%emt 0:03:53]} 14. b4 {[%emt 0:01:57][%cal Bb2b4,Bb4b5][%mdl 32]} g5 {[%emt 0:03:28] [#]} 15. Bh2 {[%emt 0:00:07]} g4 {[%emt 0:02:23]} 16. hxg4 {[%emt 0:02:40]} Bxg4 {[%emt 0:00:01]} 17. b5 {[%emt 0:08:06]} Nd8 {[%emt 0:00:02]} 18. Qb2 {[%emt 0:16:16]} Nxc3 {[%emt 0:13:59]} 19. Rxc3 {[%emt 0:00:08]} Rxc3 {[%emt 0:00:07]} 20. Qxc3 {[%emt 0:00:07]} f6 {[%emt 0:00:12]} (20... Ne6 $142) 21. Rc1 $16 {[%emt 0:25:39]} Nf7 {[%emt 0:05:10]} 22. Qb4 {[%emt 0:02:00] Strongly threatening Rc7.} e5 {[%emt 0:07:14]} (22... Rc8 $16 23. Rxc8+ Qxc8) 23. dxe5 $18 {[%emt 0:06:35]} fxe5 {[%emt 0:00:50] [#]} 24. Nxe5 $1 {[%emt 0:02:01][%mdl 512]} Nxe5 {[%emt 0:10:26]} (24... Bxe5 25. Qxg4+) 25. Bxe5 {[%emt 0:00:03]} Bxe5 {[%emt 0:15:37]} (25... Bxe2 $2 26. Rc7 Qxc7 27. Bxc7 $18) 26. Bxg4 {[%emt 0:03:17]} ({Don't do} 26. Qxg4+ $6 Qxg4 27. Bxg4 d4) 26... Qf7 {[%emt 0:02:35]} 27. Bf3 {[%emt 0:01:54] Active counter play!} d4 {[%emt 0:08:10]} 28. exd4 {[%emt 0:03:15]} Qf4 {[%emt 0:00:01]} (28... Bb8 29. Re1 Qf4 30. Qc4+ Kh8) 29. Qc4+ {[%emt 0:00:10] Weighted Error Value: White=0.02 (flawless) /Black=0.20 (precise)} 1-0

[Event "Summer Prague Open-A 2022"]
[Site "Prague"]
[Date "2022.08.11"]
[Round "8.19"]
[White "Lhotska, Anna"]
[Black "Sorm, Daniel"]
[Result "1-0"]
[ECO "B01"]
[WhiteElo "2113"]
[BlackElo "2308"]
[Annotator "TA"]
[PlyCount "67"]
[EventDate "2022.08.05"]
[EventType "swiss"]
[EventCountry "CZE"]
[SourceTitle "playchess.com"]
[Source "ChessBase"]
[SourceQuality "1"]
[TimeControl "40/5400+30:1800+30"]

{[%evp 10,67,50,20,45,51,80,88,92,58,55,60,50,60,81,47,110,62,77,57,71,54,73,39,63,43,81,63,71,11,68,18,221,215,261,278,259,157,228,110,219,264,433,433,364,358,685,671,687,661,1011,1014,983,977,1189,1168,9229,29960,2615,1962]} 1. e4 {[%emt 0:00:04] Mueller,Karsten} d5 {[%emt 0:06:10]} 2. exd5 {[%emt 0:00:10]} Qxd5 {[%emt 0:00:07]} 3. Nc3 {[%emt 0:00:08]} Qa5 {[%emt 0:00:09]} 4. d4 {[%emt 0:00:14]} Nf6 {[%emt 0:00:27]} 5. Bc4 {[%emt 0:02:58]} Bg4 {[%emt 0:01:44]} 6. f3 {[%emt 0:00:44]} Bd7 {[%emt 0:00:14] B01: Scandinavian Defence.} 7. Bd2 {[%emt 0:03:38][%cal Oc3d5]} c6 {[%emt 0:00:32] Prevents Nd5.} 8. Qe2 {[%emt 0:05:59][%cal Oc3b5] Nb5! is the strong threat.} e6 {[%emt 0:01:53] [#] White is better.} 9. O-O-O $146 {[%emt 0:04:39][%cal Oc3d5]} ({Predecessor:} 9. Ne4 Qd8 10. O-O-O b5 11. Bd3 Na6 12. f4 Nb4 13. Bxb4 Bxb4 14. c3 Be7 15. Nxf6+ Bxf6 {1-0 (33) Fedorov,A (2598)-Mamedyarov,S (2542) Batumi 2002 CBM 090 [Mueller,Karsten]}) 9... Qc7 {[%emt 0:02:51]} 10. f4 {[%emt 0:17:12]} b5 {[%emt 0:00:23]} 11. Bd3 {[%emt 0:00:37]} Bb4 {[%emt 0:07:36]} 12. g3 {[%emt 0:07:56]} Nd5 {[%emt 0:07:24]} (12... Bxc3 $14 13. Bxc3 Nd5) 13. Ne4 {[%emt 0:02:59]} (13. Nxd5 $16 Bxd2+ 14. Qxd2 (14. Rxd2 cxd5 15. Kb1 O-O $14) 14... cxd5 15. f5) 13... Bxd2+ $14 {[%emt 0:00:38]} 14. Qxd2 {[%emt 0:02:16]} Na6 {[%emt 0:00:20]} 15. Nf3 {[%emt 0:03:36]} O-O {[%emt 0:05:47]} 16. Neg5 {[%emt 0:03:36]} h6 {[%emt 0:01:43]} 17. h4 {[%emt 0:03:39][%cal Of3e5]} c5 {[%emt 0:10:24] [#]} (17... hxg5 $2 18. Bh7+ Kxh7 19. hxg5+ Kg6 20. Ne5+ (20. Qd3+ f5 $16) 20... Qxe5 21. dxe5 $18) 18. Ne5 $1 {[%emt 0:08:04]} c4 {[%emt 0:09:43]} (18... hxg5 19. Bh7+ $1 {[%mdl 512]} Kh8 20. hxg5 Nxf4 21. Qxf4) (18... Nf6 19. Ne4) 19. Bh7+ {[%emt 0:02:51]} Kh8 {[%emt 0:00:25] [#]} 20. Be4 {[%emt 0:00:33] White is much more active.} (20. c3 $1 $14 Rab8 (20... Be8 21. Rde1) 21. Be4 $1) 20... c3 $2 {[%emt 0:05:55] [#]} (20... hxg5 $2 21. hxg5+ Kg8 22. Qh2 g6 23. Qh8#) (20... Kg8 $1 $11 {and Black is okay.}) 21. bxc3 $1 $18 {[%emt 0:05:56] The board is on fire.} Bc6 {[%emt 0:06:20] [#]} (21... Kg8 22. Bh7+) 22. Qd3 $1 {[%emt 0:02:12] Threatens to win with Bxd5.} f5 {[%emt 0:00:14]} 23. Ng6+ {[%emt 0:05:19]} ({Much less strong is} 23. Nxe6 fxe4 24. Ng6+ (24. Nxc7 exd3 25. Nxa8 Rc8 $16) (24. Qxe4 Qd6 $16) 24... Kg8 25. Nxc7 exd3 26. Nxd5 (26. Nxa6 Rf6 $15) (26. Nxa8 dxc2 27. Rde1 Rxa8 $14) 26... dxc2 27. Kxc2 Bxd5 28. Ne7+ Kf7 29. Nxd5 Rad8 $18) 23... Kg8 {[%emt 0:00:09]} 24. Nxf8 {[%emt 0:01:28]} (24. Nxe6 $18 {and the rest is easy.} fxe4 25. Nxc7 exd3 26. Nxd5 (26. Nxa6 Rf6 $15) (26. Nxa8 dxc2 27. Rde1 Rxa8 $11) 26... Bxd5 27. Ne7+ Kf7 28. Nxd5) 24... fxe4 {[%emt 0:04:45]} (24... Rxf8 $16 25. Nxe6 fxe4 26. Nxc7 exd3 27. Nxa6 Nxc3) 25. Qxe4 {[%emt 0:01:17]} Nf6 $2 {[%emt 0:04:06]} (25... Qd6 {was necessary.}) 26. Qxe6+ {[%emt 0:04:09]} Kxf8 {[%emt 0:00:07]} 27. d5 {[%emt 0:01:34][%cal Bd4d5,Bd5c6][%mdl 32]} Re8 $2 {[%emt 0:13:33]} (27... Be8 28. Qxa6 Qxc3) 28. Qxc6 {[%emt 0:03:13]} Qxc6 {[%emt 0:00:05]} 29. dxc6 {[%emt 0:00:06]} hxg5 {[%emt 0:00:06]} 30. hxg5 {[%emt 0:02:01][%cal Bh4g5,Bg5g6][%mdl 32]} Ng8 {[%emt 0:00:46]} 31. Rd7 {[%emt 0:02:27]} Nb8 {[%emt 0:01:39]} 32. Rc7 {[%emt 0:00:40]} Ne7 {[%emt 0:01:46]} 33. Rh8+ {[%emt 0:00:13]} Kf7 {[%emt 0:00:02]} 34. g6+ {[%emt 0:00:09] Weighted Error Value: White=0.19 (very precise) /Black=0.62} 1-0